bitfinex-derivatives/quotes_SOLF0:USTF0_20241024
["timestamp","ask_amount","ask_price","bid_price","bid_amount"]
[1729731728640,5.02,172.75,172.64,22.2633424]
[1729731728943,5.02,172.75,172.71,2.8976]
[1729731729334,27.2833424,172.75,172.61,2.4261]
[1729731729545,22.2633424,172.7,172.65,2.8986]
[1729731730236,22.2633424,172.7,172.61,2.4261]
[1729731730237,22.2633424,172.67,172.61,1.2005]
[1729731730433,22.2633424,172.67,172.59,6.2433]
[1729731730643,22.2633424,172.7,172.59,6.2433]
[1729731731040,22.2633424,172.7,172.64,2.8987]
[1729731731939,22.2633424,172.7,172.66,2.8984]
[1729731732936,22.2633424,172.7,172.59,6.2433]
[1729731733133,22.2633424,172.7,172.67,2.8983]
[1729731734440,25.1612424,172.7,172.6,1.44976054]
[1729731734634,22.2633424,172.7,172.6,1.44976054]
[1729731735845,5.02,172.71,172.64,2.8988]
[1729731736057,5.02,172.71,172.59,28.5066424]
[1729731736349,5.02,172.71,172.6,1.44962975]
[1729731736535,5.02,172.71,172.61,1.44962975]
[1729731736739,5.02,172.71,172.59,28.5066424]
[1729731736936,5.02,172.71,172.6,1.44961628]
[1729731737150,5.02,172.71,172.59,28.5066424]
[1729731737151,5.02,172.71,172.61,1.44961628]
[1729731737353,22.2633424,172.7,172.62,1.44961628]
[1729731737654,22.2633424,172.7,172.6,1.44961628]
[1729731738146,22.2633424,172.68,172.6,1.44961628]
[1729731738347,22.2633424,172.68,172.59,1.2233]
[1729731738545,22.2633424,172.68,172.59,2.67291628]
[1729731739161,22.2633424,172.68,172.63,2.899]
[1729731739346,22.2633424,172.68,172.59,2.67291628]
[1729731739857,22.2633424,172.73,172.59,2.67291628]
[1729731740049,22.2633424,172.73,172.6,23.71295868]
[1729731740050,27.2833424,172.73,172.6,23.71295868]
[1729731740249,27.2833424,172.73,172.61,1.44961628]
[1729731740551,27.2833424,172.73,172.62,5.02]
[1729731741053,22.2633424,172.7,172.6,1.44961628]
[1729731741252,22.2633424,172.7,172.61,5.02]
[1729731742148,5.02,172.73,172.61,5.02]
[1729731742353,5.02,172.73,172.61,6.46961628]
[1729731742550,5.02,172.73,172.62,1.2929]
[1729731742753,22.2633424,172.72,172.62,1.2929]
[1729731744159,5.02,172.73,172.62,1.2929]
[1729731744353,5.02,172.73,172.63,1.2316]
[1729731744552,5.02,172.73,172.68,2.8982]
[1729731745969,22.2633424,172.72,172.61,5.02]
[1729731746162,22.2633424,172.69,172.61,5.04]
[1729731746555,1.2903,172.75,172.64,22.2633424]
[1729731747071,1.2903,172.75,172.65,1.2557]
[1729731747370,1.2903,172.75,172.72,2.8975]
[1729731747567,1.2903,172.75,172.66,5.04]
[1729731747769,1.2903,172.75,172.71,2.8976]
[1729731748067,1.2903,172.75,172.66,5.04]
[1729731748262,1.2903,172.75,172.66,6.2236]
[1729731749160,1.2903,172.75,172.73,2.8974]
[1729731749367,1.2903,172.75,172.66,6.2236]
[1729731749755,1.2903,172.75,172.68,2.8981]
[1729731749960,1.2903,172.75,172.66,6.2236]
[1729731750360,1.2903,172.75,172.7,2.8978]
[1729731750663,1.2903,172.75,172.66,6.2236]
[1729731750863,23.5536424,172.75,172.66,1.1836]
[1729731751061,28.5936424,172.75,172.66,5.04]
[1729731751770,28.5936424,172.75,172.69,2.8979]
[1729731752270,28.5936424,172.75,172.7,2.8979]
[1729731753972,28.5936424,172.75,172.71,2.8977]
[1729731757159,29.8575424,172.75,172.65,6.2957]
[1729731757469,29.8575424,172.75,172.72,2.8975]
[1729731757865,2.8976,172.72,172.68,2.8981]
[1729731758065,22.2633424,172.71,172.62,6.2976]
[1729731759072,22.2633424,172.71,172.68,2.8981]
[1729731759569,22.2633424,172.71,172.67,2.8983]
[1729731759770,27.3033424,172.71,172.67,2.8983]
[1729731760466,30.2010424,172.71,172.66,2.8985]
[1729731760671,22.2633424,172.68,172.54,1.1805]
[1729731760871,22.2633424,172.64,172.54,1.1805]
[1729731761168,30.2022424,172.64,172.57,2.9]
[1729731762271,13.92901333,172.6,172.57,2.9]
[1729731762468,13.92901333,172.58,172.55,2.9004]
[1729731762674,13.92901333,172.58,172.5,158.92427385]
[1729731762973,13.92901333,172.58,172.56,2.9002]
[1729731763270,13.92901333,172.58,172.5,158.92427385]
[1729731763866,13.92901333,172.58,172.53,2.9006]
[1729731764169,13.92901333,172.56,172.47,2.4163]
[1729731764371,23.55726238,172.57,172.51,2.9009]
[1729731765376,5.04,172.56,172.47,1.2036]
[1729731765562,5.04,172.56,172.5,2.9012]
[1729731765765,5.04,172.56,172.47,1.2036]
[1729731766165,22.27366238,172.54,172.42,1.245]
[1729731766367,22.27366238,172.52,172.42,1.245]
[1729731766672,27.31366238,172.52,172.42,1.245]
[1729731767064,27.31366238,172.52,172.45,2.9021]
[1729731767473,22.27366238,172.49,172.4,1.251]
[1729731768068,5.04,172.48,172.4,1.251]
[1729731768274,1.2836,172.57,172.42,22.27366238]
[1729731768275,22.27366238,172.56,172.42,22.27366238]
[1729731768576,5.04,172.55,172.49,2.9013]
[1729731769273,5.04,172.55,172.5,2.9013]
[1729731770068,5.04,172.55,172.44,1.1774]
[1729731770668,5.04,172.55,172.49,2.9013]
[1729731771068,27.31366238,172.55,172.49,2.9013]
[1729731771473,27.31366238,172.55,172.47,2.9017]
[1729731771474,22.27366238,172.52,172.47,2.9017]
[1729731771875,5.04,172.51,172.47,2.9017]
[1729731772089,5.04,172.51,172.45,2.902]
[1729731772272,22.27366238,172.49,172.45,2.902]
[1729731772770,22.27366238,172.49,172.44,2.9022]
[1729731772965,22.27366238,172.47,172.44,2.9022]
[1729731773369,22.27366238,172.47,172.42,2.9025]
[1729731773565,27.31366238,172.47,172.42,2.9025]
[1729731776175,5.04,172.47,172.37,5.04]
[1729731776568,1.1955,172.49,172.37,10.09479852]
[1729731776771,1.1955,172.49,172.46,2.9019]
[1729731776975,1.1955,172.49,172.37,11.54601998]
[1729731777479,22.27366238,172.48,172.37,11.54601998]
[1729731778071,22.27366238,172.48,172.46,2.9018]
[1729731779280,22.27366238,172.5,172.41,4.86]
[1729731779468,4.86,172.51,172.48,2.9016]
[1729731780880,1.2314,172.54,172.43,1.2561]
[1729731780881,4.86,172.54,172.43,1.2561]
[1729731781375,4.86,172.54,172.5,2.9012]
[1729731781776,4.86,172.55,172.48,2.9016]
[1729731781978,6.1458,172.57,172.45,4.86]
[1729731782181,6.1458,172.57,172.45,11.35666937]
[1729731782478,6.1458,172.57,172.45,6.31122146]
[1729731782786,6.1458,172.57,172.45,11.3536835]
[1729731782976,6.1458,172.57,172.45,6.31122146]
[1729731783285,6.1458,172.57,172.52,2.9008]
[1729731783683,6.1458,172.57,172.45,11.35339416]
[1729731784083,1.2858,172.57,172.48,2.9015]
[1729731784278,6.1458,172.57,172.45,11.35339416]
[1729731784680,6.1458,172.57,172.52,2.9008]
[1729731785481,6.1458,172.57,172.53,2.9007]
[1729731785682,6.1458,172.57,172.45,1.45122146]
[1729731785876,22.27366238,172.52,172.44,4.86]
[1729731786386,22.27366238,172.52,172.49,2.9013]
[1729731787887,22.27366238,172.52,172.44,4.86]
[1729731788185,4.86,172.56,172.44,27.13366238]
[1729731788378,4.86,172.56,172.45,1.45076209]
[1729731789290,4.86,172.56,172.52,2.9008]
[1729731792289,4.86,172.56,172.53,2.9007]
[1729731792687,4.86,172.56,172.45,1.45076209]
[1729731792990,4.86,172.56,172.43,1.2561]
[1729731792991,22.27366238,172.52,172.43,1.2561]
[1729731793184,22.27366238,172.52,172.43,6.1161]
[1729731793685,22.27366238,172.52,172.45,2.902]
[1729731793891,22.27366238,172.52,172.43,6.1161]
[1729731794191,22.27366238,172.55,172.52,2.9008]
[1729731794382,22.27366238,172.55,172.43,6.1161]
[1729731798094,1.2858,172.57,172.43,6.1161]
[1729731798397,4.86,172.59,172.46,22.27366238]
[1729731798598,4.86,172.59,172.56,2.9002]
[1729731799090,22.27366238,172.64,172.51,4.86]
[1729731799298,4.86,172.63,172.52,8.5902]
[1729731799482,2.4654,172.65,172.52,30.86386238]
[1729731799687,4.86,172.65,172.52,30.86386238]
[1729731799888,27.13366238,172.65,172.52,30.86386238]
[1729731800894,27.13366238,172.65,172.59,2.8996]
[1729731801095,27.13366238,172.65,172.52,30.86386238]
[1729731801489,30.03246238,172.65,172.55,2.9003]
[1729731801691,31.27726238,172.65,172.52,8.5902]
[1729731802395,22.27366238,172.62,172.52,3.7302]
[1729731802598,22.27366238,172.6,172.52,3.7302]
[1729731802793,27.13366238,172.6,172.52,2.4369]
[1729731802992,27.13366238,172.6,172.55,2.9003]
[1729731805202,27.13366238,172.6,172.56,2.9002]
[1729731806201,27.13366238,172.6,172.57,2.9001]
[1729731807301,4.86,172.6,172.59,2.8997]
[1729731807999,24.76436238,172.65,172.52,2.4369]
[1729731808202,4.76,172.63,172.61,2.8994]
[1729731813206,4.76,172.63,172.6,2.8995]
[1729731813408,22.27366238,172.61,172.52,2.4369]
[1729731814009,4.76,172.63,172.52,2.4369]
[1729731814901,4.76,172.63,172.59,2.8996]
[1729731816104,4.76,172.63,172.62,2.8992]
[1729731816915,22.27366238,172.7,172.59,4.76]
[1729731817115,27.03366238,172.7,172.6,2.4557]
[1729731818014,22.27366238,172.67,172.6,2.4557]
[1729731818214,22.27366238,172.67,172.62,2.8992]
[1729731818414,4.76,172.66,172.62,2.8992]
[1729731818618,4.76,172.66,172.56,5.9695]
[1729731819819,4.76,172.66,172.62,2.8991]
[1729731820822,6.009,172.66,172.62,2.8991]
[1729731821928,6.009,172.66,172.56,4.76]
[1729731822424,6.009,172.66,172.61,2.8992]
[1729731822821,22.27366238,172.64,172.56,4.76]
[1729731823124,22.27366238,172.62,172.59,2.8996]
[1729731823511,27.03366238,172.62,172.59,2.8996]
[1729731824818,27.03366238,172.62,172.6,2.8995]
[1729731825021,4.76,172.62,172.55,1.2725]
[1729731825923,4.76,172.62,172.6,2.8995]
[1729731828022,4.76,172.62,172.61,2.8994]
[1729731829822,22.27366238,172.64,172.61,2.8994]
[1729731830026,27.03366238,172.64,172.61,2.8994]
[1729731832326,13.9252137,172.62,172.61,2.8994]
[1729731832525,13.9252137,172.62,172.55,1.2725]
[1729731833725,4.76,172.64,172.55,1.2725]
[1729731833726,13.9252137,172.6,172.55,1.2725]
[1729731835425,13.9252137,172.58,172.53,1.4501191]
[1729731835732,13.9252137,172.58,172.52,7.4200191]
[1729731836324,13.9252137,172.58,172.57,2.9001]
[1729731839525,13.9252137,172.58,172.53,1.45032997]
[1729731839726,13.9252137,172.58,172.54,2.9004]
[1729731839932,13.9252137,172.55,172.51,1.1881]
[1729731840238,13.9252137,172.55,172.54,2.9006]
[1729731841839,13.9252137,172.57,172.56,2.9002]
[1729731842134,2.4845,172.66,172.52,4.76]
[1729731842331,18.6852137,172.65,172.62,2.8991]
[1729731842833,13.9252137,172.65,172.62,2.8991]
[1729731843034,13.9252137,172.65,172.58,1.2854]
[1729731843239,4.76,172.67,172.59,1.44990179]
[1729731843441,4.76,172.67,172.6,1.44981483]
[1729731843642,13.9252137,172.69,172.59,5.07616649]
[1729731843843,13.9252137,172.69,172.6,1.44980765]
[1729731844038,18.6852137,172.69,172.62,2.8992]
[1729731844235,4.76,172.69,172.6,1.44979199]
[1729731844536,13.9252137,172.7,172.67,2.8984]
[1729731846041,13.9252137,172.68,172.6,4.76]
[1729731846349,13.9252137,172.66,172.61,1.44973747]
[1729731846539,13.9252137,172.66,172.6,9.83169431]
[1729731846839,13.9252137,172.66,172.61,1.44974739]
[1729731847039,13.9252137,172.66,172.6,9.83169431]
[1729731847240,13.9252137,172.66,172.61,1.44974527]
[1729731847445,13.9252137,172.66,172.6,4.76]
[1729731847637,13.9252137,172.66,172.61,1.44974527]
[1729731847947,13.9252137,172.66,172.6,4.76]
[1729731848237,13.9252137,172.66,172.61,1.44976413]
[1729731848439,13.9252137,172.66,172.59,5.07422903]
[1729731848636,13.9252137,172.66,172.61,2.8993]
[1729731849035,13.9252137,172.66,172.58,1.2854]
[1729731849234,13.9252137,172.66,172.59,6.5265021]
[1729731849439,13.9252137,172.63,172.59,6.5265021]
[1729731849740,13.9252137,172.61,172.56,5.07621221]
[1729731849940,13.9252137,172.61,172.57,1.45015737]
[1729731850136,13.9252137,172.62,172.53,19.00039266]
[1729731850335,6.0178,172.66,172.56,13.9252137]
[1729731850541,6.0178,172.66,172.57,9.02863717]
[1729731850542,4.76,172.66,172.57,9.02863717]
[1729731850737,4.76,172.66,172.58,6.52523717]
[1729731850939,4.76,172.66,172.57,3.7283]
[1729731850940,4.76,172.66,172.59,6.52523717]
[1729731851140,4.76,172.66,172.6,1.45005821]
[1729731851440,2.538,172.74,172.57,3.7283]
[1729731851441,18.6852137,172.69,172.61,1.44986273]
[1729731851743,13.9252137,172.71,172.62,1.44986273]
[1729731851945,13.9252137,172.71,172.61,13.9252137]
[1729731852139,13.9252137,172.71,172.62,6.51954105]
[1729731852340,13.9252137,172.71,172.63,6.51954105]
[1729731852646,13.9252137,172.71,172.64,1.44954661]
[1729731852839,13.9252137,172.71,172.67,2.8982]
[1729731853740,13.9252137,172.71,172.66,2.8984]
[1729731853937,13.9252137,172.69,172.63,1.44955825]
[1729731854141,13.9252137,172.69,172.62,2.8991]
[1729731854349,2.8974,172.73,172.6,4.76]
[1729731854350,22.2624905,172.7,172.61,5.06986095]
[1729731854558,27.0224905,172.7,172.62,1.4496562]
[1729731854846,27.0224905,172.7,172.61,5.06943193]
[1729731855049,27.0224905,172.7,172.66,2.8984]
[1729731855251,27.0224905,172.7,172.61,5.06967504]
[1729731855542,27.0224905,172.7,172.6,4.76]
[1729731855748,27.0224905,172.7,172.62,1.44962544]
[1729731855947,27.0224905,172.7,172.63,1.44962544]
[1729731856148,27.0224905,172.7,172.62,5.0696196]
[1729731856348,27.0224905,172.7,172.67,2.8984]
[1729731856545,27.0224905,172.7,172.63,1.44962544]
[1729731857541,27.0224905,172.7,172.61,5.0696196]
[1729731857744,27.0224905,172.7,172.6,4.76]
[1729731858447,27.0224905,172.7,172.67,2.8984]
[1729731859441,27.0224905,172.7,172.61,5.07149306]
[1729731860154,27.0224905,172.73,172.7,2.8979]
[1729731860355,27.0224905,172.73,172.61,5.07149306]
[1729731860542,22.2624905,172.71,172.68,2.8981]
[1729731860743,22.2624905,172.71,172.61,5.07149306]
[1729731861649,22.2624905,172.71,172.6,4.76]
[1729731862255,22.2624905,172.71,172.69,2.898]
[1729731864547,22.2624905,172.71,172.7,2.8979]
[1729731865250,27.0224905,172.73,172.7,2.8979]
[1729731865650,27.0224905,172.73,172.69,2.898]
[1729731865844,27.0224905,172.73,172.6,4.76]
[1729731866044,5.9687,172.77,172.63,22.2624905]
[1729731866245,5.9687,172.77,172.74,2.8972]
[1729731866449,5.9687,172.77,172.64,8.3447]
[1729731866854,5.9687,172.77,172.74,2.8971]
[1729731867151,5.9687,172.77,172.66,1.4492942]
[1729731867368,5.9687,172.77,172.64,8.3447]
[1729731867369,5.9687,172.77,172.67,1.4492942]
[1729731867651,5.9687,172.77,172.68,1.4492942]
[1729731867852,5.9687,172.77,172.64,8.3447]
[1729731868058,5.9687,172.77,172.65,1.449263]
[1729731868257,5.9687,172.77,172.66,1.449263]
[1729731868454,5.9687,172.77,172.74,2.8971]
[1729731868652,1.2087,172.77,172.74,2.8971]
[1729731868954,5.9687,172.77,172.74,2.8971]
[1729731869350,5.9687,172.77,172.75,2.897]
[1729731869549,2.8963,172.8,172.68,1.44925679]
[1729731869550,4.76,172.82,172.69,28.78547952]
[1729731869854,4.76,172.82,172.7,6.52298902]
[1729731870153,4.76,172.82,172.69,22.2624905]
[1729731870154,4.76,172.82,172.8,2.8962]
[1729731871147,4.76,172.82,172.73,4.76]
[1729731871348,4.76,172.82,172.81,2.896]
[1729731873262,4.74,172.83,172.81,2.896]
[1729731873759,4.74,172.83,172.82,2.8959]
[1729731874147,2.92939268,172.95,172.74,22.2624905]
[1729731874461,22.2624905,172.91,172.77,22.2624905]
[1729731874648,2.4982,172.93,172.79,22.2624905]
[1729731874846,2.4982,172.93,172.92,2.8942]
[1729731875060,1.2792,172.93,172.92,2.8942]
[1729731875357,6.0192,172.93,172.92,2.8942]
[1729731875557,6.0192,172.93,172.8,6.18799901]
[1729731875759,22.2624905,172.91,172.8,6.18799901]
[1729731875947,22.2624905,172.91,172.8,4.74]
[1729731876366,13.90142492,172.87,172.8,4.74]
[1729731877251,13.90142492,172.87,172.78,3.742]
[1729731877449,13.90142492,172.87,172.79,4.74]
[1729731878354,13.90142492,172.87,172.85,2.8954]
[1729731880957,13.90142492,172.87,172.81,2.896]
[1729731881155,4.74,172.89,172.78,3.742]
[1729731881156,13.90142492,172.85,172.78,3.742]
[1729731881360,13.90142492,172.85,172.78,2.4759]
[1729731882161,13.90142492,172.85,172.82,2.8957]
[1729731882466,13.90142492,172.85,172.78,2.4759]
[1729731883070,13.90142492,172.85,172.81,2.8959]
[1729731885764,13.90142492,172.85,172.8,2.8961]
[1729731886067,13.90142492,172.85,172.78,2.4759]
[1729731887071,13.90142492,172.85,172.81,2.8959]
[1729731887573,13.90142492,172.85,172.78,2.4759]
[1729731888369,13.90142492,172.85,172.81,2.8959]
[1729731889665,13.90142492,172.85,172.82,2.8959]
[1729731892172,13.90142492,172.85,172.83,2.8957]
[1729731892672,13.90142492,172.85,172.78,2.4759]
[1729731894578,13.90142492,172.85,172.82,2.8958]
[1729731895566,13.90142492,172.85,172.78,2.4759]
[1729731895567,13.90142492,172.85,172.83,2.8957]
[1729731896972,4.74,172.89,172.85,2.8953]
[1729731897173,13.90142492,172.88,172.85,2.8953]
[1729731897566,18.64142492,172.88,172.78,17.62802492]
[1729731897971,13.90142492,172.88,172.78,17.62802492]
[1729731898171,13.90142492,172.88,172.87,2.895]
[1729731898370,2.4817,172.93,172.81,18.64142492]
[1729731898371,13.90142492,172.9,172.81,18.64142492]
[1729731898779,13.90142492,172.85,172.78,3.7266]
[1729731898973,13.90142492,172.85,172.78,8.4666]
[1729731899473,13.90142492,172.85,172.84,2.8955]
[1729731899866,2.4817,172.93,172.78,8.4666]
[1729731900069,1.2792,172.93,172.84,13.90142492]
[1729731900270,4.74,172.95,172.86,13.90142492]
[1729731900490,13.90142492,172.97,172.94,2.8939]
[1729731900778,2.4754,172.98,172.88,13.90142492]
[1729731900972,4.74,172.97,172.94,2.8937]
[1729731901275,4.74,172.97,172.87,1.2679]
[1729731901276,13.90142492,172.96,172.87,1.2679]
[1729731902179,13.90142492,172.96,172.92,2.8942]
[1729731905172,18.64142492,172.96,172.92,2.8942]
[1729731905979,18.64142492,172.96,172.93,2.894]
[1729731908176,4.74,172.96,172.95,2.8937]
[1729731909587,1.2259,172.99,172.98,2.8932]
[1729731909588,4.74,172.99,172.98,2.8932]
[1729731909878,4.74,172.99,172.88,4.74]
[1729731910078,13.90142492,172.95,172.88,4.74]
[1729731911481,4.74,172.96,172.88,4.74]
[1729731912180,18.64142492,172.99,172.89,13.90142492]
[1729731912988,18.64142492,172.99,172.95,2.8935]
[1729731913391,18.64142492,172.99,172.89,13.90142492]
[1729731913985,18.64142492,172.99,172.96,2.8934]
[1729731914185,4.74,173.02,172.89,13.90142492]
[1729731914383,13.90142492,173.0,172.89,13.90142492]
[1729731914582,13.90142492,173.0,172.97,2.8932]
[1729731914788,18.64142492,173.0,172.97,2.8932]
[1729731915193,13.90142492,172.98,172.97,2.8932]
[1729731915506,13.90142492,172.98,172.94,2.8937]
[1729731915690,13.90142492,172.95,172.94,2.8937]
[1729731916693,13.90142492,172.97,172.95,2.8936]
[1729731917082,12.90142492,172.97,172.95,2.8936]
[1729731917296,12.90142492,172.97,172.93,2.8939]
[1729731917490,12.90142492,172.97,172.88,4.74]
[1729731917696,17.64142492,172.97,172.88,4.74]
[1729731918093,17.64142492,172.97,172.93,2.8939]
[1729731918592,17.64142492,172.97,172.88,4.74]
[1729731918793,17.64142492,172.97,172.94,2.8938]
[1729731919291,13.90142492,172.95,172.87,1.2679]
[1729731919502,13.90142492,172.92,172.87,1.2679]
[1729731919891,13.90142492,172.92,172.91,2.8944]
[1729731920398,13.90142492,172.95,172.89,2.8946]
[1729731920597,13.90142492,172.95,172.87,1.2679]
[1729731921394,13.90142492,172.95,172.92,2.8942]
[1729731922393,13.90142492,172.95,172.94,2.8939]
[1729731928707,13.90142492,172.95,172.87,1.2679]
[1729731928708,13.90142492,172.95,172.9,2.8944]
[1729731928914,13.90142492,172.9,172.85,2.4694]
[1729731929100,13.90142492,172.88,172.79,1.2833]
[1729731929405,13.90142492,172.86,172.79,2.4924]
[1729731929713,13.90142492,172.86,172.79,3.7232]
[1729731929904,13.90142492,172.86,172.85,2.8953]
[1729731930110,13.90142492,172.86,172.79,3.7232]
[1729731930313,13.90142492,172.84,172.79,3.7232]
[1729731930610,13.90142492,172.88,172.79,3.7232]
[1729731931001,13.90142492,172.88,172.79,17.62462492]
[1729731931406,13.90142492,172.88,172.87,2.895]
[1729731933108,13.90142492,172.88,172.81,2.8959]
[1729731933308,13.90142492,172.84,172.79,2.4399]
[1729731933813,13.90142492,172.84,172.78,153.63720326]
[1729731934512,13.90142492,172.84,172.82,2.8958]
[1729731935015,4.74,172.86,172.78,153.63720326]
[1729731935308,13.90142492,172.85,172.78,153.63720326]
[1729731935609,13.90142492,172.85,172.83,2.8956]
[1729731935807,13.90142492,172.85,172.78,153.63720326]
[1729731936107,13.90142492,172.83,172.75,2.3639]
[1729731936307,13.90142492,172.83,172.76,4.74]
[1729731937213,13.90142492,172.83,172.78,2.8965]
[1729731937405,13.90142492,172.8,172.75,3.81194491]
[1729731937604,13.90142492,172.78,172.74,1.44804491]
[1729731937810,13.90142492,172.78,172.73,4.74]
[1729731938208,13.90142492,172.78,172.74,1.44804491]
[1729731938415,13.90142492,172.78,172.73,4.74]
[1729731938608,4.74,172.81,172.73,1.44804491]
[1729731938609,13.90142492,172.76,172.73,1.44804491]
[1729731938804,13.90142492,172.76,172.71,1.44804491]
[1729731939007,13.90142492,172.76,172.74,2.8971]
[1729731939204,13.90142492,172.76,172.72,1.44843689]
[1729731939405,13.90142492,172.78,172.69,8.3441]
[1729731939711,13.90142492,172.78,172.7,6.50540285]
[1729731939913,13.90142492,172.78,172.71,1.44843047]
[1729731940109,2.8957,172.83,172.7,5.05697238]
[1729731940110,2.4792,172.89,172.72,1.44843047]
[1729731940314,13.90142492,172.82,172.73,4.74]
[1729731940617,13.90142492,172.82,172.79,2.8963]
[1729731942016,13.90142492,172.82,172.78,2.8966]
[1729731942217,13.90142492,172.82,172.75,1.44826318]
[1729731942415,13.90142492,172.82,172.76,1.44826318]
[1729731942612,13.90142492,172.82,172.75,1.44826318]
[1729731942808,13.90142492,172.82,172.76,1.44826318]
[1729731943006,13.90142492,172.82,172.75,1.44826318]
[1729731943217,13.90142492,172.82,172.76,1.44826318]
[1729731943514,13.90142492,172.82,172.79,2.8964]
[1729731943713,13.90142492,172.8,172.79,2.8964]
[1729731944416,32.54284984,172.8,172.74,1.44826318]
[1729731944720,32.54284984,172.8,172.71,5.0559057]
[1729731944721,13.90142492,172.76,172.72,1.44826318]
[1729731944913,13.90142492,172.76,172.75,2.8971]
[1729731945110,13.90142492,172.76,172.72,1.44826318]
[1729731945417,13.90142492,172.76,172.75,2.8971]
[1729731945618,13.90142492,172.78,172.71,1.44826318]
[1729731945815,13.90142492,172.78,172.72,1.44826318]
[1729731946009,13.90142492,172.78,172.71,1.44826318]
[1729731946209,4.74,172.8,172.68,4.74]
[1729731946210,13.90142492,172.8,172.72,15.3496881]
[1729731946507,4.74,172.81,172.73,1.44826318]
[1729731946714,4.74,172.81,172.78,2.8964]
[1729731947015,4.74,172.81,172.73,1.44826318]
[1729731947914,4.74,172.81,172.74,1.44826318]
[1729731948214,4.74,172.83,172.75,1.44826318]
[1729731948417,4.74,172.83,172.76,1.44826318]
[1729731948617,18.64142492,172.83,172.77,2.8967]
[1729731948815,18.64142492,172.83,172.75,6.50274393]
[1729731949017,18.64142492,172.83,172.75,1.44826318]
[1729731949217,18.64142492,172.83,172.73,6.5012897]
[1729731949515,18.64142492,172.83,172.72,18.64142492]
[1729731949516,18.64142492,172.83,172.74,1.44826318]
[1729731949714,18.64142492,172.83,172.8,2.8961]
[1729731950113,4.74,172.83,172.74,15.34964923]
[1729731950316,13.90142492,172.85,172.82,2.8959]
[1729731952915,13.90142492,172.85,172.77,1.2566]
[1729731953116,13.90142492,172.85,172.77,7.75697732]
[1729731953320,13.90142492,172.85,172.77,6.30882787]
[1729731953523,13.90142492,172.85,172.83,2.8956]
[1729731953823,4.74,172.86,172.77,7.75693076]
[1729731954121,4.74,172.86,172.78,15.34952781]
[1729731954322,4.74,172.86,172.79,1.44810289]
[1729731954521,13.90142492,172.87,172.79,1.44810289]
[1729731954823,1.2085,172.88,172.81,2.896]
[1729731955023,13.90142492,172.89,172.8,4.74]
[1729731955024,18.64142492,172.89,172.8,4.74]
[1729731955225,18.64142492,172.89,172.8,6.18810289]
[1729731956130,13.90142492,172.87,172.8,4.74]
[1729731957024,13.90142492,172.87,172.8,6.18796506]
[1729731957227,13.90142492,172.85,172.83,2.8956]
[1729731957431,13.90142492,172.87,172.8,4.74]
[1729731957627,13.90142492,172.87,172.8,6.18796506]
[1729731957820,13.90142492,172.87,172.8,4.74]
[1729731958131,4.74,172.89,172.8,20.08938998]
[1729731958334,4.74,172.89,172.81,1.44796506]
[1729731958522,4.74,172.89,172.87,2.8949]
[1729731958724,4.74,172.9,172.81,6.49490266]
[1729731959030,4.74,172.9,172.82,1.44796506]
[1729731959728,15.18622492,172.92,172.82,15.34938998]
[1729731959923,15.18622492,172.92,172.83,1.44796506]
[1729731960421,15.18622492,172.92,172.82,13.90142492]
[1729731960624,13.90142492,172.9,172.8,18.64142492]
[1729731960831,13.90142492,172.9,172.81,1.44771313]
[1729731961130,13.90142492,172.88,172.82,1.44771313]
[1729731961331,13.90142492,172.88,172.77,16.44412492]
[1729731961332,13.90142492,172.83,172.79,4.74]
[1729731961519,13.90142492,172.85,172.8,1.44771313]
[1729731961722,13.90142492,172.87,172.81,1.44771313]
[1729731961929,13.90142492,172.87,172.8,1.44771313]
[1729731962125,13.90142492,172.87,172.79,4.74]
[1729731962126,13.90142492,172.89,172.81,1.44771313]
[1729731962326,13.90142492,172.89,172.8,6.49123524]
[1729731962526,13.90142492,172.89,172.81,1.44771313]
[1729731962727,13.90142492,172.89,172.87,2.8949]
[1729731963331,13.90142492,172.89,172.83,4.74]
[1729731963631,13.90142492,172.91,172.83,4.74]